fUST/lending_fUST_20240627
["ID","MTS","AMOUNT","RATE_DAILY","PERIOD"]
[330479495,1719474632301,-153.87920883,0.0002549,2]
[330479497,1719474632311,-153.87920883,0.00025799,2]
[330479498,1719474632322,-153.0,0.00025863,2]
[330479500,1719474632331,-500.0,0.00026027,10]
[330479501,1719474632340,-161.27508637,0.00026193,2]
[330479502,1719474632349,-153.87920883,0.00026195,2]
[330479503,1719474632359,-293.0841251,0.00026219,2]
[330479504,1719474632369,-500.0,0.00026301,10]
[330479506,1719474632379,-153.87920883,0.00026347,2]
[330479507,1719474632387,-500.0,0.00026575,10]
[330479509,1719474632396,-161.27508637,0.00026593,2]
[330479511,1719474632405,-154.82,0.000266,31]
[330479512,1719474632415,-154.82,0.000266,31]
[330479513,1719474632424,-154.2284257,0.00026685,2]
[330479514,1719474632433,-161.27508637,0.00026688,2]
[330479515,1719474632442,-153.87920883,0.00026828,2]
[330479516,1719474632451,-5664.08200417,0.00026838,7]
[330479517,1719474632460,-117684.76753582,0.00026848,3]
[330479911,1719474646205,-153.0,0.00026192,2]
[330479913,1719474646215,-492.97916767,0.00026848,3]
[330480355,1719475154847,10000.0,0.00026,120]
[330480362,1719475628681,820.12008693,0.000201,4]
[330480363,1719475644628,546.74672462,0.000201,4]
[330480364,1719475653288,273.37336231,0.000201,4]
[330480367,1719475661592,273.37336231,0.000201,4]
[330480369,1719475688166,820.12008693,0.000201,4]
[330480371,1719475696817,273.37336231,0.000201,4]
[330480373,1719475705082,273.37336231,0.000201,4]
[330480374,1719475713419,273.37336231,0.000201,4]
[330480376,1719475730284,546.74672462,0.000201,4]
[330480377,1719475738943,273.37336231,0.000201,4]
[330480379,1719475754612,546.74672462,0.000201,4]
[330480382,1719475762659,273.37336231,0.000201,4]
[330480383,1719475777132,705.0,0.00026,120]
[330480384,1719475779446,273.37336231,0.000201,4]
[330480385,1719475788098,273.37336231,0.000201,4]
[330480386,1719475796878,273.37336231,0.000201,4]
[330480388,1719475804990,273.37336231,0.000201,4]
[330480389,1719475813826,273.37336231,0.000201,4]
[330480390,1719475821865,273.37336231,0.000201,4]
[330480393,1719475830148,273.37336231,0.000201,4]
[330480410,1719475832593,-2833.26782636,0.000201,2]
[330480411,1719475832602,-4170.4358161,0.000201,2]
[330480412,1719475832615,-172.50601584,0.000201,2]
[330480413,1719475832627,-155.55859418,0.000201,2]
[330480414,1719475832635,-167.61693651,0.000201,2]
[330480415,1719475832645,-228.27401956,0.000201,2]
[330480416,1719475832653,-292.39052728,0.000201,2]
[330480417,1719475832662,-450.629688,0.00021096,2]
[330480418,1719475832671,-166.666666,0.00022538,2]
[330480419,1719475832680,-166.666666,0.00023152,2]
[330480420,1719475832689,-2417.34559194,0.00023453,2]
[330480421,1719475832698,-166.666666,0.00023767,2]
[330480422,1719475832707,-2835.22713374,0.000239,2]
[330480423,1719475832716,-165.12035164,0.00023966,2]
[330480424,1719475832724,-476.99881969,0.00023966,2]
[330480425,1719475832733,-154.83742071,0.00023966,2]
[330480426,1719475832743,-311.74319254,0.00023968,2]
[330480427,1719475832752,-30000.0,0.00023968,2]
[330480428,1719475832761,-157.57527764,0.00023968,2]
[330480429,1719475832771,-4709.61004361,0.00024363,2]
[330480430,1719475832780,-181.0927276,0.00024363,2]
[330480431,1719475832790,-166.666666,0.00024381,2]
[330480432,1719475832799,-154.83742071,0.00024481,2]
[330480433,1719475832808,-154.83742071,0.00024481,2]
[330480434,1719475832818,-267.05408446,0.00024557,2]
[330480435,1719475832826,-3604.97547637,0.00024646,2]
[330480437,1719475832836,-2832.04100208,0.00024647,7]
[330480439,1719475832845,-33184.27520311,0.00024647,2]
[330480536,1719475839737,273.37336231,0.000201,4]
[330480652,1719475841363,-500.0,0.00023967,2]
[330480654,1719475841372,-205.9256375,0.00023967,2]
[330481083,1719475863785,820.12008693,0.000201,4]
[330481085,1719475872666,273.37336231,0.000201,4]
[330481086,1719475881410,273.37336231,0.000201,4]
[330481087,1719475890022,273.37336231,0.000201,4]
[330481088,1719475898901,273.37336231,0.000201,4]
[330481089,1719475906873,273.37336231,0.000201,4]
[330481090,1719475915712,273.37336231,0.000201,4]
[330481091,1719475923809,273.37336231,0.000201,4]
[330481092,1719475932768,273.37336231,0.000201,4]
[330481094,1719475948499,273.37336231,0.000201,4]
[330481095,1719475956552,273.37336231,0.000201,4]
[330481096,1719475965032,273.37336231,0.000201,4]
[330481097,1719475976270,273.37336231,0.000201,4]
[330481098,1719475984988,273.37336231,0.000201,4]
[330481099,1719475993388,273.37336231,0.000201,4]
[330481100,1719476001476,273.37336231,0.000201,4]
[330481101,1719476010057,273.37336231,0.000201,4]
[330481102,1719476018337,273.37336231,0.000201,4]
[330481103,1719476027215,273.37336231,0.000201,4]
[330481104,1719476035312,273.37336231,0.000201,4]
[330481105,1719476043925,273.37336231,0.000201,4]
[330481106,1719476052857,273.37336231,0.000201,4]
[330481107,1719476061350,273.37336231,0.000201,4]
[330481108,1719476069785,273.37336231,0.000201,4]
[330481109,1719476078119,546.74672462,0.000201,4]
[330481110,1719476094526,273.37336231,0.000201,4]
[330481111,1719476102981,546.74672462,0.000201,4]
[330481112,1719476118644,273.37336231,0.000201,4]
[330481113,1719476127840,273.37336231,0.000201,4]
[330481114,1719476136223,273.37336231,0.000201,4]
[330481115,1719476144212,273.37336231,0.000201,4]
[330481116,1719476153102,273.37336231,0.000201,4]
[330481117,1719476161150,273.37336231,0.000201,4]
[330481118,1719476169456,273.37336231,0.000201,4]
[330481119,1719476177537,273.37336231,0.000201,4]
[330481120,1719476187690,273.37336231,0.000201,4]
[330481121,1719476196360,273.37336231,0.000201,4]
[330481122,1719476204682,273.37336231,0.000201,4]
[330481123,1719476212732,273.37336231,0.000201,4]
[330481124,1719476221150,273.37336231,0.000201,4]
[330481125,1719476229382,273.37336231,0.000201,4]
[330481126,1719476237736,273.37336231,0.000201,4]
[330481127,1719476246964,273.37336231,0.000201,4]
[330481128,1719476255190,273.37336231,0.000201,4]
[330481129,1719476263217,273.37336231,0.000201,4]
[330481130,1719476272202,273.37336231,0.000201,4]
[330481131,1719476280300,273.37336231,0.000201,4]
[330481132,1719476288602,273.37336231,0.000201,4]
[330481133,1719476296716,273.37336231,0.000201,4]
[330481134,1719476309780,273.37336231,0.000201,4]
[330481135,1719476319220,546.74672462,0.000201,4]
[330481136,1719476334789,546.74672462,0.000201,4]
[330481137,1719476343512,273.37336231,0.000201,4]
[330481138,1719476359678,273.37336231,0.000201,4]
[330481139,1719476368230,273.37336231,0.000201,4]
[330481140,1719476377726,273.37336231,0.000201,4]
[330481141,1719476383640,531.32438802,0.00014999,2]
[330481142,1719476386317,273.37336231,0.000201,4]
[330481143,1719476395795,273.37336231,0.000201,4]
[330481144,1719476401155,11123.32192726,0.00014998,2]
[330481145,1719476404555,546.74672462,0.000201,4]
[330481146,1719476406711,2000.0,0.0002,4]
[330481147,1719476416223,273.37336231,9.9e-05,2]
[330481148,1719476424924,273.37336231,9.9e-05,2]
[330481149,1719476433165,273.37336231,9.9e-05,2]
[330481150,1719476441080,273.37336231,9.9e-05,2]
[330481151,1719476451729,273.37336231,9.9e-05,2]
[330481152,1719476460270,273.37336231,9.9e-05,2]
[330481153,1719476468765,273.37336231,9.9e-05,2]
[330481154,1719476476776,273.37336231,9.9e-05,2]
[330481155,1719476487222,273.37336231,9.9e-05,2]
[330481156,1719476496127,273.37336231,9.9e-05,2]
[330481157,1719476504830,273.37336231,9.9e-05,2]
[330481158,1719476512813,273.37336231,9.9e-05,2]
[330481159,1719476520201,529.35373515,0.00014999,2]
[330481160,1719476521932,273.37336231,9.9e-05,2]
[330481188,1719476527362,933.08575257,0.00012,2]
[330481189,1719476529922,273.37336231,9.9e-05,2]
[330481191,1719476534679,525.73907686,0.00012,2]
[330481192,1719476538964,273.37336231,9.9e-05,2]
[330481193,1719476540888,531.0487204,0.00014999,2]
[330481194,1719476547636,273.37336231,9.9e-05,2]
[330481196,1719476554359,2489.03555686,0.00014999,2]
[330481197,1719476556429,273.37336231,9.9e-05,2]
[330481198,1719476564577,273.37336231,9.9e-05,2]
[330481199,1719476572886,273.37336231,9.9e-05,2]
[330481200,1719476581013,273.37336231,9.9e-05,2]
[330481205,1719476589595,273.37336231,9.9e-05,2]
[330481208,1719476598017,273.37336231,9.9e-05,2]
[330481211,1719476613968,273.37336231,9.9e-05,2]
[330481212,1719476622184,273.37336231,9.9e-05,2]
[330481213,1719476630405,273.37336231,9.9e-05,2]
[330481214,1719476637709,154.83742071,0.00014999,2]
[330481215,1719476638493,273.37336231,9.9e-05,2]
[330481216,1719476647109,273.37336231,9.9e-05,2]
[330481217,1719476656582,273.37336231,9.9e-05,2]
[330481218,1719476665180,273.37336231,9.9e-05,2]
[330481219,1719476674432,273.37336231,9.9e-05,2]
[330481220,1719476683482,273.37336231,9.9e-05,2]
[330481221,1719476688204,292.30222594,0.00012,2]
[330481222,1719476692303,273.37336231,9.9e-05,2]
[330481223,1719476700423,273.37336231,9.9e-05,2]
[330481226,1719476708738,273.37336231,9.9e-05,2]
[330481227,1719476716840,273.37336231,9.9e-05,2]
[330481228,1719476718840,157.2456885,0.00014999,2]
[330481230,1719476725171,273.37336231,9.9e-05,2]
[330481231,1719476733173,273.37336231,9.9e-05,2]
[330481232,1719476742174,273.37336231,9.9e-05,2]
[330481233,1719476750195,273.37336231,9.9e-05,2]
[330481234,1719476753672,176.08435993,0.00014999,2]
[330481235,1719476759218,273.37336231,9.9e-05,2]
[330481236,1719476767833,273.37336231,9.9e-05,2]
[330481237,1719476776139,273.37336231,9.9e-05,2]
[330481238,1719476778844,157.2456885,0.00012,2]
[330481239,1719476784166,273.37336231,9.9e-05,2]
[330481240,1719476792498,273.37336231,9.9e-05,2]
[330481241,1719476801897,273.37336231,9.9e-05,2]
[330481242,1719476806134,176.08435993,0.00012,2]
[330481243,1719476810546,319.48368009,0.00014999,2]
[330481244,1719476810706,273.37336231,9.9e-05,2]
[330481245,1719476818988,273.37336231,9.9e-05,2]
[330481246,1719476827220,273.37336231,9.9e-05,2]
[330481247,1719476828628,1284.46803157,0.00014999,2]
[330481248,1719476833838,157.2456885,0.00012,2]
[330481249,1719476835526,273.37336231,9.9e-05,2]
[330481250,1719476845057,273.37336231,9.9e-05,2]
[330481251,1719476853882,273.37336231,9.9e-05,2]
[330481252,1719476861139,224.25883181,0.00012,2]
[330481253,1719476862497,273.37336231,9.9e-05,2]
[330481254,1719476870861,273.37336231,9.9e-05,2]
[330481256,1719476878962,273.37336231,9.9e-05,2]
[330481257,1719476887065,273.37336231,9.9e-05,2]
[330481258,1719476894000,159.70589002,0.00012,2]
[330481259,1719476895694,273.37336231,9.9e-05,2]
[330481260,1719476898846,157.2456885,0.00012,2]
[330481261,1719476903983,273.37336231,9.9e-05,2]
[330481262,1719476905266,10484.88985003,0.00012,2]
[330481263,1719476905292,76.03640685,0.00012,2]
[330481264,1719476911494,155.1209723,0.00012,2]
[330481265,1719476912037,273.37336231,9.9e-05,2]
[330481266,1719476920866,273.37336231,9.9e-05,2]
[330481267,1719476925752,11120.42606657,0.00014545,2]
[330481268,1719476928942,273.37336231,9.9e-05,2]
[330481269,1719476937244,309.65937546,0.00014545,2]
[330481270,1719476937884,273.37336231,9.9e-05,2]
[330481271,1719476940866,165.59261985,0.00014999,2]
[330481272,1719476941669,160.03102287,0.00014545,2]
[330481273,1719476947200,273.37336231,9.9e-05,2]
[330481274,1719476955504,273.37336231,9.9e-05,2]
[330481275,1719476963662,273.37336231,9.9e-05,2]
[330481276,1719476973160,273.37336231,9.9e-05,2]
[330481277,1719476981174,273.37336231,9.9e-05,2]
[330481278,1719476989420,273.37336231,9.9e-05,2]
[330481279,1719476998271,842.95955208,0.00014999,2]
[330481280,1719476998819,273.37336231,9.9e-05,2]
[330481281,1719477007606,273.37336231,9.9e-05,2]
[330481282,1719477016519,273.37336231,9.9e-05,2]
[330481283,1719477018949,200.56386726,0.00012,2]
[330481284,1719477024794,273.37336231,9.9e-05,2]
[330481368,1719477033366,273.37336231,9.9e-05,2]
[330481459,1719477038613,-180.33113596,0.00016255,2]
[330481460,1719477038623,-155.40179341,0.00016255,2]
[330481462,1719477038632,-759.26875703,0.00018798,2]
[330481464,1719477038641,-1890.15142249,0.000189,2]
[330481466,1719477038651,-155.24510674,0.00019165,2]
[330481468,1719477038661,-532.16872188,0.00019165,2]
[330481470,1719477038671,-5426.28306249,0.00019652,2]
[330481499,1719477039094,-1371.40881746,0.00019652,2]
[330481521,1719477042046,273.37336231,9.9e-05,2]
[330481561,1719477050423,273.37336231,9.9e-05,2]
[330481563,1719477056770,842.95955208,0.00012,2]
[330481564,1719477110447,273.37336231,9.9e-05,2]
[330481565,1719477111783,842.95955208,0.00014545,2]
[330481566,1719477119108,273.37336231,9.9e-05,2]
[330481567,1719477128687,273.37336231,9.9e-05,2]
[330481568,1719477137350,273.37336231,9.9e-05,2]
[330481569,1719477146009,273.37336231,9.9e-05,2]
[330481570,1719477154016,273.37336231,9.9e-05,2]
[330481571,1719477163772,273.37336231,9.9e-05,2]
[330481572,1719477171880,273.37336231,9.9e-05,2]
[330481573,1719477180205,273.37336231,9.9e-05,2]
[330481574,1719477188252,273.37336231,9.9e-05,2]
[330481575,1719477199941,898.61359266,0.00012,2]
[330481576,1719477205454,155.14269234,0.00012,2]
[330481580,1719477402685,842.95955208,0.00014999,2]
[330481599,1719477462131,479.0,0.00026,120]
[330481600,1719477462801,957.73068854,0.00014545,2]
[330481607,1719477599070,373.8816229,0.00014999,2]
[330481608,1719477647655,1760.66584098,0.00014999,2]
[330481610,1719477704779,155.08747476,0.00014999,2]
[330481611,1719477777649,1173.77722732,0.00014999,2]
[330481612,1719477865091,233.25259489,0.00014999,2]
[330481614,1719477923217,978.14768943,0.00014999,2]
[330481616,1719478045298,274.88301866,0.00014999,2]
[330481617,1719478060171,509.61494619,0.00014999,2]
[330481618,1719478138790,166.56800558,0.00014999,2]
[330481619,1719478189171,509.61494619,0.00014999,2]
[330481620,1719478214363,706.11020178,0.00014999,2]
[330481640,1719478231788,170.0,0.000225,30]
[330481850,1719478335683,509.61494619,0.00014999,2]
[330481851,1719478532273,154.83742071,0.00014999,2]
[330481852,1719478698810,235.1401957,0.00014999,2]
[330481855,1719478807578,155.1753776,0.00014999,2]
[330481857,1719479213310,509.61494619,0.00014999,2]
[330481858,1719479245945,155.26731628,0.00014999,2]
[330481859,1719479258272,522.60599944,0.00014999,2]
[330481860,1719479333645,1366.46,0.00026,120]
[330481861,1719479343386,509.61494619,0.00014999,2]
[330481862,1719479428866,164.81209326,0.00014999,2]
[330481936,1719479485768,509.61494619,0.00014999,2]
[330481937,1719479530970,932.60140374,0.00014999,2]
[330481940,1719479612281,509.61494619,0.00014999,2]
[330481942,1719479753292,509.61494619,0.00014999,2]
[330481943,1719479852486,3209.07028939,0.00019933,7]
[330481944,1719479867770,509.61494619,0.00014999,2]
[330481945,1719479914673,1604.53514469,0.00019933,7]
[330481947,1719479919839,154.83742071,0.00014999,2]
[330481952,1719479973674,802.26757235,0.00019933,7]
[330481955,1719480003301,509.61494619,0.00014999,2]
[330481962,1719480035355,401.13378617,0.00019933,7]
[330481965,1719480073822,268.87779348,0.00014999,2]
[330481966,1719480092597,200.56689309,0.00019933,7]
[330481967,1719480103323,524.47181177,0.00014999,2]
[330481968,1719480118837,381.64176054,0.00014999,2]
[330481972,1719480155656,200.56689307,0.00019933,7]
[330481973,1719480248342,525.30807915,0.00014999,2]
[330481977,1719480490008,121.91473007,0.00014999,2]
[330481978,1719480490030,387.70021612,0.00014999,2]
[330482244,1719480639319,263.12172849,0.00014999,2]
[330482394,1719480676155,523.68336584,0.0001818,7]
[330482399,1719481489662,521.0,0.00019165,7]
[330482477,1719481839013,-376.8417728,0.00017863,2]
[330482478,1719481839025,-144.1582272,0.00018081,2]
[330482495,1719481841079,-24755.8417728,0.00018081,2]
[330482496,1719481841090,-238.3692507,0.00018284,2]
[330482497,1719481841100,-1923.2925016,0.00018397,2]
[330482498,1719481841110,-5396.98485838,0.000189,2]
[330482569,1719481844263,-6746.71861901,0.000189,2]
[330482637,1719482144765,985.89509296,0.00015,2]
[330482646,1719482331470,271.8025521,0.00014999,2]
[330482653,1719482493788,209.05944659,0.00014999,2]
[330482675,1719482866388,-7600.0,0.000189,2]
[330482713,1719483032221,-5397.42169468,0.00018413,2]
[330482715,1719483032230,-747.56719203,0.000188,2]
[330482718,1719483032242,-990.01633221,0.000188,2]
[330482721,1719483032253,-300.0,0.00018899,2]
[330482723,1719483032262,-300.0,0.00018899,2]
[330482726,1719483032273,-5338.58581518,0.000189,2]
[330482728,1719483032296,-1071.90034161,0.000189,2]
[330482808,1719483041029,-188.20060672,0.000189,2]
[330482809,1719483041044,-483.02695302,0.00019039,2]
[330482810,1719483041053,-163.724839,0.00019178,2]
[330482811,1719483041065,-150.94269422,0.00019443,2]
[330482842,1719483155694,11794.3852115,0.00019444,7]
[330482843,1719484172545,3319.06814907,0.00019275,7]
[330482867,1719484238360,-384.36450991,0.000189,2]
[330482869,1719484238373,-326.94861135,0.000189,2]
[330482870,1719484238385,-197.17719015,0.000189,2]
[330482871,1719484238394,-521.0,0.00019165,7]
[330482872,1719484238404,-209.144617,0.00019264,2]
[330482873,1719484238413,-17520.47819285,0.00019275,2]
[330482876,1719484242693,-4393.21865499,0.00019275,2]
[330482913,1719485155138,4000.0,0.00026,120]
[330482914,1719485167760,3209.0,0.00026,120]
[330482915,1719485185217,157.37635578,0.00014999,2]
[330482917,1719485410692,176194.0912444,0.0002,30]
[330483012,1719485439096,-2050.44949075,0.00016255,2]
[330483013,1719485439109,-270.14482909,0.0001818,2]
[330483014,1719485439120,-163.724839,0.00019178,2]
[330483015,1719485439129,-324.78534307,0.00019338,2]
[330483016,1719485439140,-682.06324079,0.00019338,2]
[330483017,1719485439151,-7465.73009963,0.00019757,2]
[330483019,1719485439164,-830.92781127,0.00019757,2]
[330483021,1719485439175,-1005.343901,0.0002,2]
[330483022,1719485439185,-307.9960519,0.000202,2]
[330483023,1719485439195,-11632.44409267,0.00021012,2]
[330483036,1719485444483,-6674.52290137,0.00021012,7]
[330483037,1719485444492,-3064.48501433,0.00021012,2]
[330483062,1719486127712,10560.92625688,0.00014998,2]
[330483082,1719486633102,-825.99151127,0.00018798,2]
[330483083,1719486633112,-605.66020761,0.000189,2]
[330483084,1719486633124,-232.29883522,0.00019165,2]
[330483085,1719486633134,-651.21208712,0.00019232,2]
[330483086,1719486633143,-409.90148935,0.0002,2]
[330483128,1719486639124,-1743.96550261,0.0002,2]
[330483129,1719486639135,-300.0,0.00021011,2]
[330483131,1719486639145,-153.27320151,0.00021012,2]
[330483176,1719486882199,159.41650065,0.00014999,2]
[330483182,1719487172556,950.04267236,0.00015,2]
[330483218,1719487700255,159.27631888,0.00014999,2]
[330483241,1719487832629,-403.77347174,0.000189,2]
[330483243,1719487832640,-556.76959914,0.00021012,2]
[330483273,1719487841011,-2778.58207009,0.00021012,7]
[330483360,1719488398174,947.59886703,0.00015,2]
[330483361,1719488415245,833.33333,0.00014999,4]
[330483363,1719488592652,273.37336231,9.9e-05,2]
[330483364,1719488601416,273.37336231,9.9e-05,2]
[330483365,1719488610443,273.37336231,9.9e-05,2]
[330483366,1719488618754,273.37336231,9.9e-05,2]
[330483367,1719488683977,176.03735811,0.00012,2]
[330483368,1719488798914,176.52664349,0.00014545,2]
[330483421,1719489032307,-151.0,0.00018,2]
[330483423,1719489032317,-269.18231449,0.000189,2]
[330483425,1719489032328,-212.5,0.00020465,2]
[330483427,1719489032338,-2325.19180001,0.000205,4]
[330483429,1719489032349,-1161.8655624,0.000205,4]
[330483460,1719489038285,-339.5000166,0.0001763,2]
[330483461,1719489038296,-662.22500522,0.000205,4]
[330483462,1719489038308,-209.39735389,0.000205,4]
[330483463,1719489038318,-256.89590863,0.00020596,2]
[330483464,1719489040419,-2040.8022408,0.00020596,2]
[330483465,1719489040430,-1943.0977592,0.00021012,7]
[330483514,1719489046470,-422.22153081,0.00021012,7]
[330483515,1719489046541,-411.11179919,0.00021012,7]
[330483516,1719489183851,3125.23136675,0.00014999,4]
[330483519,1719489678580,933.46560815,0.00014999,2]
[330483520,1719489803579,1088.02524842,0.00014999,2]
[330483552,1719490232593,-179.45487633,0.000189,2]
[330483553,1719490232603,-772.0,0.0002025,2]
[330483554,1719490232612,-255.07567954,0.00020411,2]
[330483555,1719490232629,-194.8,0.00020459,2]
[330483556,1719490232639,-1098.4370055,0.00021012,2]
[330483557,1719490232683,-339.5000166,0.00021012,2]
[330483574,1719490238711,-265.00443593,0.00021012,2]
[330483575,1719490238814,-366.99479238,0.00021012,2]
[330483609,1719490240996,-4579.39020813,0.00021012,2]
[330483610,1719490241006,-161.898459,0.00021014,2]
[330483611,1719490241015,-194.8,0.00021091,2]
[330483612,1719490241024,-151.0,0.00021091,2]
[330483613,1719490241033,-499.780664,0.00021096,2]
[330483614,1719490241042,-163.724839,0.00021119,2]
[330483615,1719490241051,-3747.7083333,0.00021299,2]
[330483616,1719490241060,-360.2055377,0.000214,2]
[330483617,1719490241069,-153.0,0.000214,2]
[330483618,1719490241078,-306.0,0.000214,2]
[330483619,1719490241086,-317.9904952,0.000214,2]
[330483620,1719490241095,-306.0,0.000214,2]
[330483621,1719490241105,-153.0,0.00021425,2]
[330483622,1719490241114,-454.5859994,0.00021506,2]
[330483623,1719490241123,-194.8,0.00021723,2]
[330483624,1719490241135,-151.0,0.00021723,2]
[330483625,1719490241144,-1602.99443175,0.00021918,7]
[330483626,1719490241153,-166.666666,0.00021918,2]
[330483627,1719490241162,-194.8,0.00022354,2]
[330483628,1719490241171,-151.0,0.00022354,2]
[330483629,1719490241180,-166.666666,0.00022431,2]
[330483630,1719490241189,-166.666666,0.00022944,2]
[330483631,1719490241198,-194.8,0.00022986,3]
[330483632,1719490241207,-151.0,0.00022986,3]
[330483633,1719490241216,-154.83742071,0.00023,2]
[330483634,1719490241225,-191.231,0.0002325,2]
[330483635,1719490241235,-166.666666,0.00023456,2]
[330483636,1719490241243,-194.8,0.00023618,3]
[330483637,1719490241252,-151.0,0.00023618,3]
[330483638,1719490241261,-179.45487633,0.000239,2]
[330483639,1719490241270,-2950.39658317,0.00023909,2]
[330483640,1719490241279,-166.666666,0.00023969,2]
[330483641,1719490241287,-942.42,0.00023979,3]
[330483642,1719490241296,-471.21,0.00023979,3]
[330483643,1719490241305,-404.64214632,0.00023988,2]
[330483644,1719490241314,-497.06332027,0.00023988,2]
[330483645,1719490241323,-396.27017335,0.00023988,2]
[330483646,1719490241331,-11814.09509771,0.00023989,7]
[330483647,1719490241340,-20030.99193622,0.00023989,2]
[330484355,1719490568203,500.0,0.00024446,120]
[330484356,1719490574239,493.8473819,0.00024446,120]
[330484417,1719491431995,-161.898459,0.00021014,2]
[330484419,1719491432004,-474.79163,0.00021096,2]
[330484421,1719491432013,-166.666666,0.00021918,2]
[330484422,1719491432027,-117.18395308,0.00022346,2]
[330484425,1719491432039,-32.81604692,0.00022346,2]
[330484427,1719491432049,-166.666666,0.00022462,2]
[330484429,1719491432060,-154.5134434,0.000225,2]
[330484430,1719491432070,-154.83742071,0.00023,2]
[330484432,1719491432080,-166.666666,0.00023005,2]
[330484434,1719491432089,-166.666666,0.00023549,2]
[330484436,1719491432100,-261.83309097,0.00023562,2]
[330484707,1719491495357,2039.0,0.000225,30]
[330484728,1719492638339,-214.0,0.000195,10]
[330484729,1719492638360,-161.898459,0.00021014,2]
[330484730,1719492638370,-451.052048,0.00021096,2]
[330484731,1719492638380,-163.724839,0.00021894,2]
[330484732,1719492638391,-167.6369,0.00021918,2]
[330484733,1719492638401,-166.90446916,0.00023012,2]
[330484734,1719492638411,-92.59695422,0.000231,2]
[330484742,1719492642772,-115.76217108,0.000231,2]
[330484746,1719492642782,-139.98785005,0.00023326,2]
[330484908,1719493833333,-161.898459,0.00021014,2]
[330484909,1719493833343,-300.329541,0.00021096,2]
[330484910,1719493833354,-128.169904,0.00021096,2]
[330484911,1719493833363,-195.2859499,0.0002215,2]
[330484912,1719493833372,-152.68812027,0.00023477,2]
[330485638,1719495039088,-161.898459,0.00021014,2]
[330485640,1719495039098,-407.074472,0.00021096,2]
[330485642,1719495039109,-163.724839,0.00021678,2]
[330485644,1719495039118,-801.49721587,0.00022879,7]
[330485646,1719495039128,-662.79099846,0.00022879,2]
[330485648,1719495039138,-706.81,0.0002295,3]
[330485650,1719495039148,-353.41,0.0002295,3]
[330485652,1719495039158,-176.7,0.0002295,3]
[330485653,1719495039169,-500.0,0.00022958,2]
[330485655,1719495039179,-500.0,0.00022958,2]
[330485657,1719495039189,-614.22396667,0.00022958,2]
[330485659,1719495039199,-500.0,0.00022958,4]
[330485661,1719495039209,-500.87033061,0.00022958,4]
[330485663,1719495039219,-500.0,0.00022958,4]
[330485665,1719495039230,-500.0,0.00022958,4]
[330485667,1719495039241,-500.0,0.00022958,4]
[330485669,1719495039255,-151.0,0.00022959,7]
[330485671,1719495039265,-152.873935,0.00022959,7]
[330485673,1719495039275,-151.0,0.00022959,7]
[330485674,1719495039287,-151.0,0.00022959,7]
[330485676,1719495039297,-169.880785,0.00022959,7]
[330485678,1719495039307,-1269.114704,0.00022959,7]
[330485680,1719495039316,-1269.114704,0.00022959,7]
[330485681,1719495039327,-1269.114704,0.00022959,7]
[330485682,1719495039337,-14.63579751,0.00022959,7]
[330485683,1719495039350,-1254.47890649,0.00022959,7]
[330485684,1719495039360,-1269.114704,0.00022959,7]
[330485685,1719495039370,-1269.114704,0.00022959,7]
[330485686,1719495039380,-1269.114704,0.00022959,7]
[330485687,1719495039390,-1269.114704,0.00022959,7]
[330485688,1719495039399,-1269.114704,0.00022959,7]
[330485689,1719495039409,-837.56922607,0.00022959,7]
[330485735,1719495047939,-509.45704281,0.0002295,3]
[330485777,1719495475050,10000.0,0.000225,30]
[330485778,1719495503192,10000.0,0.000225,30]
[330485779,1719495520339,540.21691935,0.000225,30]